fUST/lending_fUST_20250904
["ID","MTS","AMOUNT","RATE_DAILY","PERIOD"]
[383377953,1756917072110,-160.0,0.00022,7]
[383377954,1756917072119,-55381.21968446,0.00022,2]
[383377955,1756917072130,-417.15472785,0.00022,7]
[383377956,1756917072140,-530.32150586,0.00022,7]
[383377957,1756917072150,-160.0,0.00022,7]
[383377958,1756917072160,-4000.0,0.00022,4]
[383377959,1756917072170,-10565.36259732,0.00022,7]
[383377960,1756917072180,-260.41666667,0.00022,7]
[383377961,1756917072190,-192.94924942,0.000221,2]
[383377962,1756917072200,-721.97,0.000221,2]
[383377963,1756917072210,-1442.81,0.00022191,2]
[383377964,1756917072220,-247.36237348,0.00022229,2]
[383377965,1756917072230,-500.0,0.000223,7]
[383377966,1756917072239,-1000.0,0.00022335,20]
[383377967,1756917072250,-492.0,0.00022335,20]
[383377968,1756917072260,-200.7983767,0.00022355,2]
[383377969,1756917072270,-176.167615,0.000224,3]
[383377970,1756917072280,-800.0,0.00022419,2]
[383377971,1756917072290,-1560.0,0.0002243,2]
[383377972,1756917072300,-1442.81,0.00022465,2]
[383377973,1756917072310,-300.0,0.00022466,2]
[383377974,1756917072320,-1014.22831906,0.000225,2]
[383377975,1756917072330,-1000.0,0.000225,2]
[383377976,1756917072566,-160.0,0.000225,7]
[383377977,1756917072580,-240.30100287,0.000225,5]
[383377978,1756917072589,-151.0,0.000225,3]
[383377979,1756917072597,-155.56118263,0.000225,3]
[383377980,1756917072607,-151.0,0.000225,3]
[383377981,1756917072616,-162.69731494,0.000225,3]
[383377982,1756917072625,-151.0,0.000225,3]
[383377983,1756917072635,-151.0,0.000225,3]
[383377984,1756917072644,-151.0,0.000225,3]
[383377985,1756917072654,-151.0,0.000225,3]
[383377986,1756917072663,-151.0,0.000225,3]
[383377987,1756917072673,-151.0,0.000225,3]
[383377988,1756917072682,-151.0,0.000225,3]
[383377989,1756917072692,-151.0,0.000225,3]
[383377990,1756917072702,-151.0,0.000225,3]
[383377991,1756917072711,-151.0,0.000225,3]
[383377992,1756917072721,-151.0,0.000225,3]
[383377993,1756917072730,-151.0,0.000225,3]
[383377994,1756917072739,-151.0,0.000225,3]
[383377995,1756917072749,-203.78609116,0.000225,3]
[383377996,1756917072759,-151.0,0.000225,3]
[383377997,1756917072768,-151.0,0.000225,3]
[383377998,1756917072777,-151.0,0.000225,3]
[383377999,1756917072787,-151.0,0.000225,3]
[383378000,1756917072795,-151.0,0.000225,3]
[383378001,1756917072803,-151.0,0.000225,3]
[383378002,1756917072811,-151.0,0.000225,3]
[383378003,1756917072819,-151.0,0.000225,3]
[383378004,1756917072828,-151.0,0.000225,3]
[383378005,1756917072837,-151.0,0.000225,3]
[383378006,1756917072845,-151.0,0.000225,3]
[383378007,1756917072854,-240.51290255,0.000225,3]
[383378008,1756917072863,-151.0,0.000225,3]
[383378009,1756917072872,-151.0,0.000225,3]
[383378010,1756917072879,-151.0,0.000225,3]
[383378011,1756917072886,-151.0,0.000225,3]
[383378012,1756917072893,-151.0,0.000225,3]
[383378013,1756917072901,-151.0,0.000225,3]
[383378014,1756917072911,-151.0,0.000225,3]
[383378015,1756917072921,-151.0,0.000225,3]
[383378016,1756917072930,-151.0,0.000225,3]
[383378017,1756917072940,-151.0,0.000225,3]
[383378018,1756917072950,-151.0,0.000225,3]
[383378019,1756917072959,-151.0,0.000225,3]
[383378020,1756917072969,-152.67842218,0.000225,3]
[383378021,1756917072979,-151.0,0.000225,3]
[383378022,1756917072988,-151.0,0.000225,3]
[383378023,1756917072997,-151.0,0.000225,3]
[383378024,1756917073007,-151.0,0.000225,3]
[383378025,1756917073018,-151.0,0.000225,3]
[383378026,1756917073027,-151.0,0.000225,3]
[383378027,1756917073037,-153.50437692,0.000225,3]
[383378028,1756917073047,-1768.0,0.000225,3]
[383378029,1756917073056,-1768.0,0.000225,3]
[383378030,1756917073066,-1768.0,0.000225,3]
[383378031,1756917073075,-1233.92033932,0.000225,3]
[383378032,1756917073085,-1768.0,0.000225,3]
[383378033,1756917073094,-1768.0,0.000225,3]
[383378034,1756917073104,-1768.0,0.000225,3]
[383378035,1756917073114,-1768.0,0.000225,3]
[383378036,1756917073123,-1768.0,0.000225,3]
[383378037,1756917073133,-3679.10448341,0.00022549,2]
[383378038,1756917073143,-800.0,0.00022569,2]
[383378039,1756917073152,-800.0,0.00022574,2]
[383378040,1756917073162,-417.15472785,0.000226,3]
[383378041,1756917073171,-800.0,0.00022628,2]
[383378042,1756917073181,-800.0,0.00022737,2]
[383378043,1756917073190,-1442.81,0.00022739,2]
[383378044,1756917073199,-303.67524595,0.00022803,2]
[383378045,1756917073209,-2900.0,0.00022808,2]
[383378046,1756917073218,-800.0,0.00022868,2]
[383378047,1756917073228,-23778.67263638,0.00022879,2]
[383378048,1756917073237,-1660.0,0.00022978,2]
[383378049,1756917073247,-500.0,0.00023,7]
[383378050,1756917073257,-500.0,0.00023,7]
[383378051,1756917073267,-2005.67912014,0.00023,2]
[383378052,1756917073277,-2950.23465879,0.00023,2]
[383378053,1756917073286,-324.54,0.00023,7]
[383378054,1756917073296,-15213.39002877,0.00023,2]
[383378055,1756917073306,-232.87008258,0.00023,3]
[383378056,1756917073315,-701.61,0.00023,5]
[383378057,1756917073325,-160.0,0.00023,3]
[383378058,1756917073335,-17971.38,0.00023,7]
[383378059,1756917073347,-153.87,0.00023,2]
[383378060,1756917073356,-180.0,0.00023,7]
[383378061,1756917073367,-160.0,0.00023,3]
[383378062,1756917073376,-160.0,0.00023,3]
[383378063,1756917073387,-846.3157213,0.00023,3]
[383378064,1756917073396,-217.50314573,0.00023,3]
[383378065,1756917073406,-160.0,0.00023,3]
[383378066,1756917073415,-160.0,0.00023,3]
[383378067,1756917073425,-164.0,0.00023,7]
[383378068,1756917073434,-160.0,0.00023,3]
[383378069,1756917073444,-530.32150586,0.00023,3]
[383378070,1756917073455,-160.0,0.00023,3]
[383378071,1756917073464,-4000.0,0.00023,4]
[383378072,1756917073475,-232.90165665,0.00023,3]
[383378073,1756917073485,-260.41666667,0.00023,3]
[383378074,1756917073496,-1442.81,0.00023013,2]
[383378075,1756917073506,-450.0,0.00023014,2]
[383378076,1756917073517,-103867.36,0.000231,7]
[383378077,1756917073531,-153.0,0.00023127,2]
[383378078,1756917073542,-161.4660183,0.00023127,2]
[383378079,1756917073552,-295.1181445,0.00023127,2]
[383378080,1756917073561,-583.2030344,0.00023127,2]
[383378081,1756917073571,-800.0,0.00023193,2]
[383378082,1756917073580,-502.02668151,0.0002328,5]
[383378083,1756917073590,-600.0,0.0002328,5]
[383378084,1756917073601,-1442.81,0.00023287,2]
[383378085,1756917073611,-500.0,0.00023287,2]
[383378086,1756917073622,-2232.71,0.00023287,2]
[383378087,1756917073631,-151.0,0.00023288,7]
[383378088,1756917073641,-625.08560753,0.0002333,2]
[383378089,1756917073651,-385.14579734,0.00023441,2]
[383378090,1756917073661,-200.0,0.0002349,2]
[383378091,1756917073671,-1000.0,0.000235,2]
[383378092,1756917073681,-1806.0,0.000235,5]
[383378093,1756917073690,-1760.0,0.00023526,2]
[383378094,1756917073700,-539.3298756,0.00023545,2]
[383378095,1756917073711,-1442.81,0.00023561,2]
[383378096,1756917073721,-318.32,0.00023561,2]
[383378097,1756917073730,-318.32,0.00023561,2]
[383378098,1756917073740,-318.32,0.00023561,2]
[383378099,1756917073749,-318.32,0.00023561,2]
[383378100,1756917073759,-318.32,0.00023561,2]
[383378101,1756917073769,-318.32,0.00023561,2]
[383378102,1756917073779,-318.32,0.00023561,2]
[383378103,1756917073790,-318.32,0.00023561,2]
[383378104,1756917073801,-318.32,0.00023561,2]
[383378105,1756917073810,-318.32,0.00023561,2]
[383378106,1756917073820,-318.32,0.00023561,2]
[383378107,1756917073830,-318.32,0.00023561,2]
[383378108,1756917073840,-318.32,0.00023561,2]
[383378109,1756917073851,-318.32,0.00023561,2]
[383378110,1756917073862,-318.32,0.00023561,2]
[383378111,1756917073872,-318.32,0.00023561,2]
[383378112,1756917073881,-318.32,0.00023561,2]
[383378113,1756917073890,-318.32,0.00023561,2]
[383378114,1756917073899,-318.32,0.00023561,2]
[383378115,1756917073909,-318.32,0.00023561,2]
[383378116,1756917073918,-318.32,0.00023561,2]
[383378117,1756917073927,-318.32,0.00023561,2]
[383378118,1756917073936,-318.32,0.00023561,2]
[383378119,1756917073946,-318.45916475,0.00023561,2]
[383378120,1756917073956,-600.0,0.00023562,2]
[383378121,1756917073967,-11828.5423373,0.000236,2]
[383378122,1756917073977,-800.0,0.00023711,2]
[383378123,1756917073986,-4494.0,0.000238,2]
[383378124,1756917073996,-1442.81,0.00023835,2]
[383378125,1756917074006,-173.23267417,0.00023836,2]
[383378126,1756917074018,-176.167615,0.0002384,2]
[383378127,1756917074028,-171.63868214,0.0002387,2]
[383378128,1756917074037,-1705.48815288,0.00024,2]
[383378129,1756917074046,-232.78794292,0.00024,10]
[383378130,1756917074056,-1026.92322366,0.00024,7]
[383378131,1756917074065,-1000.0,0.00024,10]
[383378132,1756917074074,-8004.17,0.00024,2]
[383378133,1756917074083,-502.38712793,0.00024,7]
[383378134,1756917074095,-160.0,0.00024,10]
[383378135,1756917074104,-8243.36738636,0.00024,2]
[383378136,1756917074113,-472.26400049,0.00024,2]
[383378137,1756917074122,-232.90165665,0.00024,7]
[383378138,1756917074132,-158.0,0.00024,5]
[383378139,1756917074142,-2014.74,0.00024,2]
[383378140,1756917074151,-160.0,0.00024,7]
[383378141,1756917074161,-160.0,0.00024,10]
[383378142,1756917074171,-661.62602643,0.00024,3]
[383378143,1756917074181,-160.0,0.00024,7]
[383378144,1756917074191,-846.3157213,0.00024,7]
[383378145,1756917074201,-217.50314573,0.00024,7]
[383378146,1756917074211,-160.0,0.00024,7]
[383378147,1756917074221,-160.0,0.00024,7]
[383378148,1756917074230,-160.0,0.00024,7]
[383378149,1756917074240,-530.32150586,0.00024,3]
[383378150,1756917074250,-160.0,0.00024,3]
[383378151,1756917074259,-232.90165665,0.00024,7]
[383378152,1756917074269,-232.90165665,0.00024,3]
[383378153,1756917074279,-260.41666667,0.00024,3]
[383378154,1756917074288,-4000.0,0.00024,4]
[383378155,1756917074297,-150.905999,0.0002405,2]
[383378156,1756917074306,-1860.0,0.00024074,2]
[383378157,1756917074316,-1442.81,0.00024109,2]
[383378158,1756917074325,-750.0,0.0002411,2]
[383378159,1756917074334,-173.23267417,0.00024137,2]
[383378160,1756917074344,-5907.33206523,0.00024148,2]
[383378161,1756917074352,-164.0,0.00024164,7]
[383378162,1756917074360,-126932.15379085,0.000242,5]
[383378163,1756917074368,-600.0,0.0002424,7]
[383378164,1756917074378,-1191.87310832,0.0002425,7]
[383378165,1756917074387,-1323.00230561,0.0002427,6]
[383378166,1756917074396,-17971.38,0.000243,7]
[383378167,1756917074405,-23778.67263638,0.00024368,2]
[383378168,1756917074414,-1442.81,0.00024383,2]
[383378169,1756917074423,-800.0,0.0002446,2]
[383378170,1756917074431,-800.0,0.00024461,2]
[383378171,1756917074439,-800.0,0.00024495,2]
[383378172,1756917074448,-661.53428492,0.000245,2]
[383378173,1756917074456,-375.4377974,0.000245,10]
[383378174,1756917074465,-103867.36,0.000245,7]
[383378175,1756917074473,-500.0,0.000245,9]
[383378176,1756917074482,-500.0,0.000245,9]
[383378177,1756917074491,-1000.0,0.00024568,20]
[383378178,1756917074500,-791.0,0.00024568,20]
[383378179,1756917074508,-153.0,0.00024575,2]
[383378180,1756917074518,-231.52196325,0.000246,7]
[383378181,1756917074528,-1960.0,0.00024622,2]
[383378182,1756917074538,-125261.58944243,0.0002465,2]
[383378183,1756917074610,-1891.5538386,0.0002465,2]
[383378184,1756917074623,-597.21876042,0.0002465,2]
[383378185,1756917074640,-600.14816389,0.0002465,2]
[383378186,1756917074652,-563.27660365,0.0002465,2]
[383378187,1756917074663,-11854.26908227,0.0002465,2]
[383378188,1756917074675,-1063.3322401,0.0002465,2]
[383378189,1756917074787,-480.0,0.00013698,2]
[383378190,1756917074797,-86.83870148,0.00013698,2]
[383378191,1756917074809,-281.53018695,0.00013698,2]
[383378192,1756917074829,-2430.54468131,0.00013698,2]
[383378193,1756917074839,-481.88992233,0.00013698,2]
[383378194,1756917074849,-153.3,0.00015616,2]
[383378195,1756917074858,-65049.26539636,0.0002465,2]
[383378196,1756917074870,-1586.59013193,0.0002465,2]
[383378197,1756917074935,627.26,0.00012205,2]
[383378198,1756917074949,-806.64838715,0.000226,3]
[383378199,1756917074958,-6585.24589597,0.000226,3]
[383378200,1756917074967,-3173.4683142,0.000226,3]
[383378201,1756917074973,-10565.36259732,0.00023,3]
[383378202,1756917074981,-22009.68055943,0.0002465,2]
[383378203,1756917074990,-650.998744,0.0002465,2]
[383378204,1756917075170,627.26,0.00012083,2]
[383378205,1756917092428,-300.0,0.00013338,2]
[383378206,1756917094603,-200.0,0.00013338,2]
[383378207,1756917099717,500.0,0.00013338,2]
[383378208,1756917126271,666.0,0.00012663,2]
[383378209,1756917137922,-168.07242241,0.00013205,2]
[383378210,1756917137952,-500.0,0.00013338,2]
[383378211,1756917137982,-500.0,0.00013373,2]
[383378212,1756917138011,-164.89562748,0.00013373,2]
[383378213,1756917138042,-500.0,0.00013373,2]
[383378214,1756917138077,-500.0,0.00013373,2]
[383378215,1756917138107,-500.0,0.00013373,2]
[383378216,1756917141894,500.0,0.00013205,2]
[383378217,1756917144239,773.27963324,0.00013373,2]
[383378219,1756917153898,750.62413843,0.00013393,2]
[383378220,1756917153936,339.9798752,0.00013393,2]
[383378221,1756917153968,750.62413843,0.00013393,2]
[383378222,1756917154018,750.62413843,0.00013393,2]
[383378223,1756917154167,468.94197649,0.00013393,2]
[383378224,1756917154193,281.68216194,0.00013393,2]
[383378225,1756917154289,750.62413843,0.00013393,2]
[383378226,1756917154353,750.62413843,0.00013393,2]
[383378227,1756917154384,750.62413843,0.00013393,2]
[383378228,1756917154555,750.62413843,0.00013393,2]
[383378229,1756917154616,750.62413843,0.00013393,2]
[383378230,1756917154647,750.62413843,0.00013393,2]
[383378231,1756917154682,750.62413843,0.00013393,2]
[383378232,1756917154819,750.62413843,0.00013393,2]
[383378233,1756917154927,750.62413843,0.00013393,2]
[383378234,1756917155312,750.62413843,0.00013393,2]
[383378235,1756917155556,750.62413843,0.00013393,2]
[383378236,1756917155738,750.62413843,0.00013393,2]
[383378237,1756917159550,500.0,0.00013393,2]
[383378238,1756917159595,210.8381769,0.00013393,2]
[383378239,1756917159619,289.1618231,0.00013393,2]
[383378240,1756917159651,500.0,0.00013393,2]
[383378241,1756917159679,500.0,0.00013393,2]
[383378242,1756917159714,500.0,0.00013393,2]
[383378243,1756917159745,500.0,0.00013393,2]
[383378244,1756917159778,500.0,0.00013393,2]
[383378245,1756917159813,500.0,0.00013393,2]
[383378246,1756917159840,237.01274822,0.00013393,2]
[383378247,1756917159868,433.23283465,0.00013393,2]
[383378248,1756917159896,500.0,0.00013393,2]
[383378249,1756917159925,500.0,0.00013393,2]
[383378250,1756917159963,611.17250696,0.00013393,2]
[383378251,1756917159993,617.32980663,0.00013393,2]
[383378252,1756917160035,391.34007886,0.00013393,2]
[383378253,1756917160086,500.0,0.00013393,2]
[383378254,1756917160129,437.97384437,0.00013393,2]
[383378255,1756917165441,2482.78635721,0.0001326,2]
[383378256,1756917165465,10000.01,0.0001326,2]
[383378257,1756917165488,10000.01,0.0001326,2]
[383378258,1756917165512,10000.01,0.0001326,2]
[383378259,1756917165535,10000.01,0.0001326,2]
[383378260,1756917165563,10000.01,0.0001326,2]
[383378261,1756917165589,10000.01,0.0001326,2]
[383378262,1756917165612,10000.01,0.0001326,2]
[383378263,1756917165635,10000.01,0.0001326,2]
[383378264,1756917167790,-179.72563445,0.0001326,2]
[383378265,1756917167957,-3403.14809545,0.0001326,2]
[383378266,1756917168110,-3193.7138091,0.0001326,2]
[383378267,1756917168140,-534.81969864,0.00013393,2]
[383378268,1756917168169,-534.81969864,0.00013393,2]
[383378269,1756917168199,-534.81969864,0.00013393,2]
[383378270,1756917168395,-534.81969864,0.00013393,2]
[383378271,1756917168425,-534.81969864,0.00013393,2]
[383378272,1756917168455,-534.81969864,0.00013393,2]
[383378273,1756917168484,-534.81969864,0.00013393,2]
[383378274,1756917168514,-534.81969864,0.00013393,2]
[383378275,1756917168545,-534.81969864,0.00013393,2]
[383378276,1756917168576,-534.81969864,0.00013393,2]
[383378277,1756917168606,-534.81969864,0.00013393,2]
[383378278,1756917168636,-534.81969864,0.00013393,2]
[383378279,1756917168894,-534.81969864,0.00013393,2]
[383378280,1756917182738,300.0,0.00013393,2]
[383378281,1756917184785,198.0,0.00012329,2]
[383378282,1756917185960,500.0,0.00013393,2]
[383378283,1756917186067,427.1241432,0.00013393,2]
[383378284,1756917186290,500.0,0.00013393,2]
[383378285,1756917189765,411.35121586,0.00013373,2]
[383378286,1756917189927,500.0,0.00013373,2]
[383378287,1756917190015,500.0,0.00013373,2]
[383378288,1756917190115,500.0,0.00013373,2]
[383378289,1756917195199,165.0,0.00012329,2]
[383378290,1756917196049,500.0,0.00013393,2]
[383378291,1756917196105,500.0,0.00013393,2]
[383378292,1756917196175,500.0,0.00013393,2]
[383378293,1756917196228,359.83362374,0.00013393,2]
[383378294,1756917198580,488.2307451,0.00013393,2]
[383378295,1756917205847,825.03,0.00012329,2]
[383378298,1756917237781,1379.66418134,0.00013345,2]
[383378299,1756917241532,376.13669348,0.0001326,2]
[383378300,1756917241555,859.82720332,0.0001326,2]
[383378301,1756917242595,300.0,0.00013393,2]
[383378302,1756917264359,1745.91046472,0.0001326,2]
[383378303,1756917277920,203.61,0.00012329,2]
[383378304,1756917288642,203.61,0.00012329,2]
[383378305,1756917299026,174.613787,0.00012718,2]
[383378306,1756917299261,221.09,0.00012329,2]
[383378307,1756917299294,174.613787,0.00012718,120]
[383378308,1756917302178,300.0,0.00013393,2]
[383378309,1756917302313,300.0,0.00013393,2]
[383378310,1756917302392,300.0,0.00013393,2]
[383378311,1756917302544,300.0,0.00013393,2]
[383378312,1756917302647,300.0,0.00013393,2]
[383378313,1756917309581,1200.0,0.00013393,2]
[383378314,1756917309869,273.84,0.00012329,2]
[383378315,1756917310809,841.0952722,0.00012617,2]
[383378316,1756917314614,202.58865222,0.00012992,2]
[383378317,1756917320623,521.76,0.00012329,2]
[383378318,1756917331560,886.94,0.00012329,2]
[383378319,1756917342095,739.11,0.00012329,2]
[383378320,1756917352583,752.95,0.00012329,2]
[383378321,1756917355108,392.0526956,0.0001326,2]
[383378322,1756917362481,140.83912826,0.00013393,2]
[383378323,1756917362505,159.16087174,0.00013393,2]
[383378324,1756917363325,766.69,0.00012329,2]
[383378325,1756917373832,638.91,0.00012329,2]
[383378326,1756917384491,892.87,0.00012329,2]
[383378327,1756917394942,885.5,0.00012329,2]
[383378328,1756917405652,797.28,0.00012329,2]
[383378329,1756917416092,799.33,0.00012329,2]
[383378330,1756917422459,203.92133502,0.00013294,2]
[383378331,1756917423785,435.92344023,0.0001326,2]
[383378332,1756917426515,666.11,0.00012329,2]
[383378333,1756917429363,1200.0,0.00013393,2]
[383378334,1756917437031,555.09,0.00012329,2]
[383378335,1756917447510,462.57,0.00012329,2]
[383378336,1756917451254,151.0,0.000131,2]
[383378337,1756917451676,151.0,0.00012,2]
[383378338,1756917452067,151.0,0.00011,2]
[383378339,1756917458263,385.48,0.00012329,2]
[383378340,1756917468691,321.23,0.00012329,2]
[383378341,1756917479197,267.69,0.00012329,2]
[383378342,1756917489904,109.25435301,0.00012329,2]
[383378343,1756917489927,113.82564699,0.00012329,2]
[383378344,1756917500511,185.9,0.00012329,2]
[383378345,1756917510967,154.92,0.00012329,2]
[383378346,1756917521457,774.6,0.00012329,2]
[383378347,1756917544952,8770.76435301,0.0001262,2]
[383378348,1756917544974,1229.23564699,0.0001262,2]
[383378349,1756917590068,846.98518876,0.00013377,2]
[383378350,1756917602801,300.0,0.00013393,2]
[383378351,1756917602829,300.0,0.00013393,2]
[383378352,1756917606579,500.0,0.00013386,2]
[383378353,1756917607211,500.0,0.00013386,2]
[383378354,1756917608320,500.0,0.00013386,2]
[383378355,1756917608973,500.0,0.00013386,2]
[383378356,1756917609534,1200.0,0.00013393,2]
[383378357,1756917609806,500.0,0.00013386,2]
[383378358,1756917609944,151.0,0.00013386,2]
[383378359,1756917610117,151.0,0.00013386,2]
[383378360,1756917610503,250.0,0.00013386,2]
[383378361,1756917610668,151.0,0.00013386,2]
[383378362,1756917610728,151.0,0.00013386,2]
[383378363,1756917610811,181.08010149,0.00013386,2]
[383378364,1756917611225,250.0,0.00013386,2]
[383378365,1756917611332,151.0,0.00013386,2]
[383378366,1756917611379,151.0,0.00013386,2]
[383378367,1756917611893,250.0,0.00013386,2]
[383378368,1756917611970,151.0,0.00013386,2]
[383378369,1756917612017,151.0,0.00013386,2]
[383378370,1756917612559,250.0,0.00013386,2]
[383378371,1756917612663,151.0,0.00013386,2]
[383378372,1756917613033,151.0,0.00013386,2]
[383378373,1756917613398,151.0,0.00013386,2]
[383378374,1756917613638,250.0,0.00013386,2]
[383378375,1756917614021,151.0,0.00013386,2]
[383378376,1756917614307,250.0,0.00013386,2]
[383378377,1756917614671,130.70906276,0.00013386,2]
[383378378,1756917614694,20.29093724,0.00013386,2]
[383378379,1756917614932,250.0,0.00013386,2]
[383378380,1756917615311,151.0,0.00013386,2]
[383378381,1756917615740,250.0,0.00013386,2]
[383378382,1756917615966,151.0,0.00013386,2]
[383378383,1756917616377,250.0,0.00013386,2]
[383378384,1756917616614,151.0,0.00013386,2]
[383378385,1756917617240,151.0,0.00013386,2]
[383378386,1756917617474,300.0,0.00013386,2]
[383378387,1756917617883,151.0,0.00013386,2]
[383378388,1756917618504,151.0,0.00013386,2]
[383378389,1756917619118,151.0,0.00013386,2]
[383378390,1756917620091,2264.10087164,0.00013386,2]
[383378391,1756917622173,500.0,0.00013386,2]
[383378392,1756917622817,500.0,0.00013386,2]
[383378393,1756917623463,500.0,0.00013386,2]
[383378394,1756917624131,500.0,0.00013386,2]
[383378395,1756917624766,500.0,0.00013386,2]
[383378396,1756917625869,500.0,0.00013386,2]
[383378397,1756917626533,500.0,0.00013386,2]
[383378398,1756917627212,500.0,0.00013386,2]
[383378399,1756917627501,713.49850208,0.0001326,2]
[383378400,1756917627844,500.0,0.00013386,2]
[383378401,1756917628517,395.11968904,0.00013386,2]
[383378402,1756917628544,104.88031096,0.00013386,2]
[383378403,1756917629623,500.0,0.00013386,2]
[383378404,1756917630292,500.0,0.00013386,2]
[383378405,1756917631640,500.0,0.00013386,2]
[383378406,1756917632310,500.0,0.00013386,2]
[383378407,1756917632969,500.0,0.00013386,2]
[383378408,1756917662489,300.0,0.00013393,2]
[383378409,1756917722482,240.0,0.00013393,2]
[383378410,1756917727716,1200.0,0.00013393,2]
[383378411,1756917739780,655.66206768,0.0001326,2]
[383378412,1756917754366,151.0,0.000133,2]
[383378413,1756917754787,151.0,0.000129,2]
[383378414,1756917755109,151.0,0.000126,2]
[383378415,1756917755140,327.83103384,0.0001326,2]
[383378416,1756917755417,151.0,0.000123,2]
[383378417,1756917755735,151.0,0.00012,2]
[383378418,1756917756071,151.0,0.000116,2]
[383378419,1756917756400,151.0,0.000113,2]
[383378420,1756917756762,151.0,0.00011,2]
[383378421,1756917763481,327.83103384,0.0001326,2]
[383378422,1756917789675,500.0,0.00013373,2]
[383378423,1756917790135,500.0,0.00013373,2]
[383378424,1756917790214,500.0,0.00013373,2]
[383378425,1756917790244,500.0,0.00013373,2]
[383378426,1756917790523,500.0,0.00013373,2]
[383378427,1756917790554,500.0,0.00013373,2]
[383378428,1756917790721,135.80555368,0.00013373,2]
[383378429,1756917790744,364.19444632,0.00013373,2]
[383378430,1756917801326,172.16896616,0.0001326,2]
[383378431,1756917808533,1207.20615862,0.00013341,2]
[383378432,1756917827085,3920.87901034,0.00013341,2]
[383378433,1756917843164,500.0,0.00013373,2]
[383378434,1756917843283,500.0,0.00013373,2]
[383378448,1756917902516,300.0,0.00013393,2]
[383378449,1756917902662,199.0,0.00013393,2]
[383378453,1756917908779,1200.0,0.00013393,2]
[383378456,1756917974977,152.22,0.00025,120]
[383378457,1756917977334,1636.56141856,0.00013,2]
[383378458,1756917977357,3516.50098275,0.00013,2]
[383378459,1756918028662,1200.0,0.00013393,2]
[383378461,1756918072864,666.0,0.0001262,2]
[383378463,1756918089007,1271.74661838,0.00013305,2]
[383378466,1756918178121,250.0,0.00027,120]
[383378472,1756918202648,300.0,0.00013393,2]
[383378473,1756918209436,1200.0,0.00013393,2]
[383378527,1756918232597,-754.94052615,0.00013394,2]
[383378529,1756918232609,-456.47960642,0.00013394,2]
[383378951,1756918238437,-368788.57986743,0.00013394,2]
[383378952,1756918238447,-3136.70320824,0.000135,2]
[383378953,1756918238456,-3136.70320824,0.00013525,2]
[383378954,1756918238466,-3136.70320824,0.00013549,2]
[383378955,1756918238475,-3136.70320824,0.00013574,2]
[383378956,1756918238485,-3136.70320824,0.00013598,2]
[383378957,1756918238495,-151.0,0.000136,2]